[Event "XLII Barbera Open 2019"]
[Site "Barbera"]
[Date "2019.07.04"]
[Round "1.1"]
[White "Peralta, Fernando"]
[Black "Alvarez Albiol, Victor"]
[Result "1/2-1/2"]
[ECO "A05"]
[WhiteElo "2562"]
[BlackElo "2075"]
[Annotator "ChessBase"]
[PlyCount "88"]
[EventDate "2019.07.04"]
[EventType "swiss"]
[EventCountry "ESP"]
[SourceTitle "playchess.com"]
[Source "ChessBase"]
[SourceQuality "1"]
[TimeControl "5400+30"]

1. Nf3 {[%emt 0:00:00]} Nf6 {[%emt 0:00:00]} 2. c4 {[%emt 0:00:00]} g6 {[%emt 0:00:11]} 3. Nc3 {[%emt 0:00:55]} Bg7 {[%emt 0:00:11]} 4. e4 {[%emt 0:00:14]} d6 {[%emt 0:00:18]} 5. d4 {[%emt 0:00:06]} O-O {[%emt 0:00:19]} 6. h3 {[%emt 0:00:41]} c5 {[%emt 0:01:38]} 7. d5 {[%emt 0:00:43]} b5 {[%emt 0:02:04]} 8. cxb5 {[%emt 0:00:14]} a6 {[%emt 0:00:11]} 9. a4 {[%emt 0:01:24]} axb5 {[%emt 0:02:29]} 10. Bxb5 {[%emt 0:00:14]} Ba6 {[%emt 0:01:33]} 11. Bxa6 {[%emt 0:29:03]} Nxa6 {[%emt 0:00:32]} 12. O-O {[%emt 0:00:05]} Nc7 {[%emt 0:02:44]} 13. Qc2 {[%emt 0:03:53]} Qb8 {[%emt 0:03:22]} 14. Bd2 {[%emt 0:05:54]} Qb7 {[%emt 0:02:49]} 15. b3 {[%emt 0:02:45]} Rab8 {[%emt 0:03:04]} 16. Rab1 {[%emt 0:00:24]} Nd7 {[%emt 0:08:09]} 17. Rfe1 {[%emt 0:04:14]} e6 {[%emt 0:06:53]} 18. Bf4 {[%emt 0:05:57]} Ne5 {[%emt 0:07:22]} 19. Bxe5 {[%emt 0:01:36]} dxe5 {[%emt 0:04:37]} 20. d6 {[%emt 0:00:25]} Na6 {[%emt 0:09:25]} 21. Nb5 {[%emt 0:00:42]} Rfd8 {[%emt 0:02:22]} 22. Rbd1 {[%emt 0:01:24]} Rbc8 {[%emt 0:05:52]} 23. Qc3 {[%emt 0:04:47]} Nb4 {[%emt 0:04:14]} 24. Nxe5 {[%emt 0:07:32]} Nc6 {[%emt 0:06:32]} 25. f4 {[%emt 0:00:09]} Nd4 {[%emt 0:01:13]} 26. Qc4 {[%emt 0:11:38]} Nxb5 {[%emt 0:03:39]} 27. axb5 {[%emt 0:00:23]} Bxe5 {[%emt 0:02:15]} 28. fxe5 {[%emt 0:00:52]} Rb8 {[%emt 0:00:02]} 29. Ra1 {[%emt 0:03:10]} Qxb5 {[%emt 0:00:40]} 30. Ra7 {[%emt 0:01:21]} Qxb3 {[%emt 0:02:48]} 31. Qxc5 {[%emt 0:00:59]} Qg3 {[%emt 0:05:24]} 32. Qa5 {[%emt 0:09:11]} Rf8 {[%emt 0:01:52]} 33. Qa1 {[%emt 0:00:24]} Rb2 {[%emt 0:02:22]} 34. Qxb2 {[%emt 0:00:14]} Qxe1+ {[%emt 0:00:06]} 35. Kh2 {[%emt 0:00:01]} Qxe4 {[%emt 0:00:15]} 36. Ra1 {[%emt 0:03:15]} f6 {[%emt 0:05:49]} 37. Rc1 {[%emt 0:00:59]} fxe5 {[%emt 0:02:17]} 38. Qd2 {[%emt 0:00:08]} Rd8 {[%emt 0:01:34]} 39. d7 {[%emt 0:00:19]} Qb7 {[%emt 0:01:16]} 40. Rd1 {[%emt 0:00:29]} Qc7 {[%emt 0:00:30]} 41. Kh1 {[%emt 0:00:49]} e4 {[%emt 0:00:30]} 42. Qd4 {[%emt 0:01:25]} e3 {[%emt 0:00:42]} 43. Qxe3 {[%emt 0:00:59]} Rxd7 {[%emt 0:00:34]} 44. Qxe6+ {[%emt 0:00:03]} Rf7 {[%emt 0:00:05]} 1/2-1/2

[Event "XLII Barbera Open 2019"]
[Site "Barbera"]
[Date "2019.07.04"]
[Round "1.2"]
[White "Trost, Edvin"]
[Black "Harutyunian, Tigran K."]
[Result "0-1"]
[ECO "B47"]
[WhiteElo "2069"]
[BlackElo "2539"]
[Annotator "ChessBase"]
[PlyCount "116"]
[EventDate "2019.07.04"]
[EventType "swiss"]
[EventCountry "ESP"]
[SourceTitle "playchess.com"]
[Source "ChessBase"]
[SourceQuality "1"]
[TimeControl "5400+30"]

1. e4 {[%emt 0:00:00]} c5 {[%emt 0:00:05]} 2. Nf3 {[%emt 0:00:04]} e6 {[%emt 0:00:15]} 3. d4 {[%emt 0:00:37]} cxd4 {[%emt 0:00:08]} 4. Nxd4 {[%emt 0:00:06]} Nc6 {[%emt 0:00:07]} 5. Nc3 {[%emt 0:00:12]} Qc7 {[%emt 0:00:22]} 6. Nb3 {[%emt 0:00:40]} Nf6 {[%emt 0:02:25]} 7. f4 {[%emt 0:02:51]} Bb4 {[%emt 0:01:16]} 8. Bd3 {[%emt 0:00:31]} d6 {[%emt 0:06:13]} 9. Bd2 {[%emt 0:02:10]} O-O 10. a3 {[%emt 0:02:05]} Bxc3 {[%emt 0:08:24]} 11. Bxc3 {[%emt 0:00:23]} e5 {[%emt 0:00:06]} 12. Qf3 {[%emt 0:03:47]} Be6 {[%emt 0:03:22]} 13. f5 {[%emt 0:05:59]} Bxb3 {[%emt 0:03:46]} 14. cxb3 {[%emt 0:00:04]} Qb6 {[%emt 0:00:45]} 15. b4 {[%emt 0:07:50]} Nd4 {[%emt 0:15:13]} 16. Qf2 {[%emt 0:00:59]} Rfe8 {[%emt 0:00:24]} 17. O-O {[%emt 0:05:35]} Ng4 {[%emt 0:00:18]} 18. Bxd4 {[%emt 0:00:13]} Nxf2 {[%emt 0:00:08]} 19. Bxb6 {[%emt 0:00:06]} Nxd3 {[%emt 0:00:05]} 20. Bc7 {[%emt 0:01:07]} Nxb2 {[%emt 0:03:56]} 21. Bxd6 {[%emt 0:01:34]} Rad8 {[%emt 0:09:19]} 22. Bc5 {[%emt 0:05:19]} b6 {[%emt 0:03:44]} 23. Bf2 {[%emt 0:07:44]} Rd3 {[%emt 0:00:51]} 24. Rfc1 {[%emt 0:04:21]} Red8 {[%emt 0:00:37]} 25. h3 {[%emt 0:03:26]} h6 {[%emt 0:08:16]} 26. Rc7 {[%emt 0:02:19]} R8d7 {[%emt 0:02:35]} 27. Rc8+ {[%emt 0:06:19]} Kh7 {[%emt 0:00:11]} 28. Re8 {[%emt 0:18:17]} f6 {[%emt 0:02:16]} 29. Rc1 {[%emt 0:03:34]} Rd1+ {[%emt 0:01:59]} 30. Rxd1 {[%emt 0:00:00]} Nxd1 {[%emt 0:00:18]} 31. Be1 {[%emt 0:04:44]} Nb2 {[%emt 0:02:53]} 32. Rc8 {[%emt 0:01:06]} Rd4 {[%emt 0:03:09]} 33. Bf2 {[%emt 0:04:07]} Rc4 {[%emt 0:03:22]} 34. Rd8 {[%emt 0:01:09]} Rc7 {[%emt 0:00:04]} 35. Rd2 {[%emt 0:01:11]} Na4 {[%emt 0:01:52]} 36. Be1 {[%emt 0:02:45]} h5 {[%emt 0:03:47]} 37. Kf2 {[%emt 0:01:04]} Nc3 {[%emt 0:02:05]} 38. Ke3 {[%emt 0:01:46]} Nb5 {[%emt 0:02:32]} 39. Rd3 {[%emt 0:00:01]} Rc1 {[%emt 0:00:57]} 40. Bh4 {[%emt 0:00:00]} Ra1 {[%emt 0:00:00]} 41. Rd7 {[%emt 0:00:00]} Rxa3+ {[%emt 0:00:00]} 42. Ke2 {[%emt 0:00:00]} Kg8 {[%emt 0:00:00]} 43. Rd8+ {[%emt 0:00:00]} Kf7 {[%emt 0:00:00]} 44. Rd7+ {[%emt 0:00:00]} Kf8 {[%emt 0:00:00]} 45. Be1 {[%emt 0:00:00]} Nd4+ {[%emt 0:00:00]} 46. Kf1 {[%emt 0:00:00]} Kg8 {[%emt 0:00:00]} 47. Rd8+ {[%emt 0:00:00]} Kh7 {[%emt 0:00:00]} 48. Rd7 {[%emt 0:00:00]} Re3 {[%emt 0:00:00]} 49. Bh4 {[%emt 0:00:00]} Rxe4 {[%emt 0:00:00]} 50. Bxf6 {[%emt 0:00:00]} Nxf5 {[%emt 0:00:00]} 51. Rxa7 {[%emt 0:00:00]} Kg6 {[%emt 0:00:00]} 52. Bd8 {[%emt 0:00:00]} Rxb4 {[%emt 0:00:00]} 53. Ra6 {[%emt 0:00:00]} Ne3+ {[%emt 0:00:00]} 54. Kf2 {[%emt 0:00:00]} Nd5 {[%emt 0:00:00]} 55. Ra2 {[%emt 0:00:00]} Kf5 {[%emt 0:00:00]} 56. Rd2 {[%emt 0:00:00]} Rd4 {[%emt 0:00:00]} 57. Rb2 {[%emt 0:00:00]} Nf4 {[%emt 0:00:00]} 58. Kg3 {[%emt 0:00:00]} Rxd8 {[%emt 0:00:00]} 0-1

[Event "XLII Barbera Open 2019"]
[Site "Barbera"]
[Date "2019.07.04"]
[Round "1.3"]
[White "Rios, Cristhian Camilo"]
[Black "Ojeda Lago, Ariadna"]
[Result "1-0"]
[ECO "A28"]
[WhiteElo "2520"]
[BlackElo "2067"]
[Annotator "ChessBase"]
[PlyCount "37"]
[EventDate "2019.07.04"]
[EventType "swiss"]
[EventCountry "ESP"]
[SourceTitle "playchess.com"]
[Source "ChessBase"]
[SourceQuality "1"]
[TimeControl "5400+30"]

1. c4 {[%emt 0:00:32]} e5 {[%emt 0:00:00]} 2. Nc3 {[%emt 0:00:08]} Nf6 {[%emt 0:00:00]} 3. Nf3 {[%emt 0:00:15]} Nc6 {[%emt 0:00:00]} 4. e3 {[%emt 0:00:09]} Bb4 {[%emt 0:00:44]} 5. Qc2 {[%emt 0:00:43]} O-O {[%emt 0:01:08]} 6. Nd5 {[%emt 0:01:00]} Bc5 {[%emt 0:01:41]} 7. Be2 {[%emt 0:01:11]} Re8 {[%emt 0:02:39]} 8. Ng5 {[%emt 0:01:55]} h6 {[%emt 0:02:43]} 9. Nxf6+ {[%emt 0:00:12]} Qxf6 {[%emt 0:06:18]} 10. Qh7+ {[%emt 0:00:37]} Kf8 {[%emt 0:00:09]} 11. Ne4 {[%emt 0:00:07]} Qd8 {[%emt 0:04:51]} 12. Nxc5 {[%emt 0:01:34]} d6 {[%emt 0:02:57]} 13. Ne4 {[%emt 0:01:50]} Ne7 {[%emt 0:04:46]} 14. Ng3 {[%emt 0:00:09]} Ng6 {[%emt 0:03:57]} 15. Nh5 {[%emt 0:01:43]} Qg5 {[%emt 0:02:24]} 16. Qxg7+ {[%emt 0:04:12]} Ke7 {[%emt 0:00:29]} 17. O-O {[%emt 0:00:29]} Bg4 {[%emt 0:07:23]} 18. Bxg4 Rg8 {[%emt 0:05:59]} 19. Qf6+ {[%emt 0:01:02]} 1-0

[Event "XLII Barbera Open 2019"]
[Site "Barbera"]
[Date "2019.07.04"]
[Round "1.4"]
[White "Fernandez-Diaz Mascort, Miguel"]
[Black "Munoz, Miguel"]
[Result "0-1"]
[ECO "A00"]
[WhiteElo "2064"]
[BlackElo "2511"]
[Annotator "ChessBase"]
[PlyCount "66"]
[EventDate "2019.07.04"]
[EventType "swiss"]
[EventCountry "ESP"]
[SourceTitle "playchess.com"]
[Source "ChessBase"]
[SourceQuality "1"]
[TimeControl "5400+30"]

1. Nc3 c5 2. Nf3 Nc6 {[%emt 0:00:07]} 3. e4 {[%emt 0:02:05]} g6 {[%emt 0:00:46]} 4. Bb5 {[%emt 0:00:27]} Bg7 {[%emt 0:00:47]} 5. O-O {[%emt 0:01:20]} e5 {[%emt 0:00:30]} 6. Bxc6 {[%emt 0:00:30]} dxc6 {[%emt 0:00:30]} 7. d3 {[%emt 0:00:30]} Ne7 {[%emt 0:00:30]} 8. Be3 {[%emt 0:00:30]} b6 {[%emt 0:00:30]} 9. Nd2 {[%emt 0:00:30]} h6 {[%emt 0:00:30]} 10. f4 {[%emt 0:00:30]} exf4 {[%emt 0:00:30]} 11. Bxf4 {[%emt 0:00:30]} O-O {[%emt 0:00:30]} 12. Nc4 {[%emt 0:00:30]} g5 {[%emt 0:00:30]} 13. Bg3 {[%emt 0:00:30]} f5 {[%emt 0:00:30]} 14. Qe2 {[%emt 0:00:30]} f4 {[%emt 0:00:30]} 15. Bf2 {[%emt 0:00:30]} Be6 {[%emt 0:00:30]} 16. e5 {[%emt 0:00:30]} Nf5 {[%emt 0:00:30]} 17. Rae1 {[%emt 0:00:30]} Nd4 {[%emt 0:00:30]} 18. Bxd4 {[%emt 0:00:30]} Qxd4+ {[%emt 0:00:30]} 19. Kh1 {[%emt 0:00:30]} Bxc4 {[%emt 0:00:30]} 20. dxc4 {[%emt 0:00:30]} Rae8 {[%emt 0:00:30]} 21. e6 {[%emt 0:00:30]} Rf6 {[%emt 0:00:30]} 22. e7 {[%emt 0:00:30]} Rf7 {[%emt 0:00:30]} 23. Qe6 {[%emt 0:00:30]} Qf6 {[%emt 0:00:30]} 24. g3 {[%emt 0:00:30]} Rexe7 {[%emt 0:00:30]} 25. Qxf6 {[%emt 0:00:30]} Bxf6 {[%emt 0:00:30]} 26. gxf4 {[%emt 0:00:30]} Rxe1 {[%emt 0:51:39]} 27. Rxe1 {[%emt 0:47:42]} Bxc3 {[%emt 0:00:03]} 28. bxc3 {[%emt 0:00:10]} Rxf4 {[%emt 0:00:05]} 29. Kg2 {[%emt 0:06:23]} Kf7 {[%emt 0:00:58]} 30. Rd1 {[%emt 0:01:24]} Rxc4 {[%emt 0:01:22]} 31. Rd7+ {[%emt 0:00:39]} Ke6 {[%emt 0:00:30]} 32. Rh7 {[%emt 0:00:30]} Rxc3 {[%emt 0:00:30]} 33. Rxh6+ {[%emt 0:00:30]} Kf5 {[%emt 0:00:30]} 0-1

[Event "XLII Barbera Open 2019"]
[Site "Barbera"]
[Date "2019.07.04"]
[Round "1.5"]
[White "Moskalenko, Viktor"]
[Black "Diaz Del Valle, Laura Beatriz"]
[Result "1-0"]
[ECO "A06"]
[WhiteElo "2500"]
[BlackElo "2063"]
[Annotator "ChessBase"]
[PlyCount "59"]
[EventDate "2019.07.04"]
[EventType "swiss"]
[EventCountry "ESP"]
[SourceTitle "playchess.com"]
[Source "ChessBase"]
[SourceQuality "1"]
[TimeControl "5400+30"]

1. Nf3 {[%emt 0:00:40]} d5 {[%emt 0:00:00]} 2. b4 {[%emt 0:00:26]} Nf6 {[%emt 0:00:30]} 3. Bb2 {[%emt 0:00:06]} e6 {[%emt 0:00:13]} 4. a3 {[%emt 0:00:09]} c5 {[%emt 0:00:34]} 5. bxc5 {[%emt 0:00:32]} Bxc5 {[%emt 0:00:11]} 6. e3 {[%emt 0:00:59]} Nc6 {[%emt 0:00:55]} 7. d4 {[%emt 0:01:15]} Bd6 {[%emt 0:02:17]} 8. Nbd2 {[%emt 0:00:23]} O-O {[%emt 0:01:07]} 9. Bd3 {[%emt 0:12:48]} Qc7 {[%emt 0:04:30]} 10. c4 {[%emt 0:00:47]} Re8 11. Rc1 {[%emt 0:08:09]} Qe7 {[%emt 0:08:00]} 12. c5 {[%emt 0:11:22]} Bb8 {[%emt 0:03:26]} 13. O-O Nh5 {[%emt 0:11:39]} 14. Ne5 {[%emt 0:16:53]} Bxe5 {[%emt 0:05:18]} 15. dxe5 {[%emt 0:05:30]} g6 {[%emt 0:00:50]} 16. f4 {[%emt 0:02:15]} Rd8 {[%emt 0:02:05]} 17. Qe2 {[%emt 0:03:27]} Ng7 {[%emt 0:02:36]} 18. g4 {[%emt 0:01:36]} Ne8 {[%emt 0:02:19]} 19. Nf3 {[%emt 0:09:15]} Bd7 {[%emt 0:05:31]} 20. Qg2 {[%emt 0:05:31]} Rac8 {[%emt 0:09:31]} 21. Qh3 {[%emt 0:02:59]} Qf8 {[%emt 0:06:50]} 22. f5 {[%emt 0:01:25]} exf5 {[%emt 0:04:49]} 23. gxf5 gxf5 {[%emt 0:08:08]} 24. Kh1 {[%emt 0:02:22]} Ng7 {[%emt 0:02:39]} 25. Ng5 {[%emt 0:05:50]} h5 {[%emt 0:01:05]} 26. e6 {[%emt 0:00:15]} fxe6 {[%emt 0:01:36]} 27. Bxg7 {[%emt 0:00:58]} Kxg7 {[%emt 0:03:12]} 28. Nxe6+ {[%emt 0:02:44]} Bxe6 {[%emt 0:00:11]} 29. Bxf5 {[%emt 0:00:03]} Bxf5 {[%emt 0:02:54]} 30. Rxf5 1-0

[Event "XLII Barbera Open 2019"]
[Site "Barbera"]
[Date "2019.07.04"]
[Round "1.6"]
[White "Bhavesh Mahajan"]
[Black "Oliva Castaneda, Kevel"]
[Result "0-1"]
[ECO "C50"]
[WhiteElo "2051"]
[BlackElo "2467"]
[Annotator "ChessBase"]
[PlyCount "128"]
[EventDate "2019.07.04"]
[EventType "swiss"]
[EventCountry "ESP"]
[SourceTitle "playchess.com"]
[Source "ChessBase"]
[SourceQuality "1"]
[TimeControl "5400+30"]

1. e4 {[%emt 0:00:00]} e5 {[%emt 0:00:00]} 2. Nf3 {[%emt 0:00:07]} Nc6 {[%emt 0:00:00]} 3. Bc4 {[%emt 0:00:11]} Bc5 {[%emt 0:00:11]} 4. O-O {[%emt 0:00:12]} Nf6 {[%emt 0:00:36]} 5. d3 {[%emt 0:00:27]} d6 {[%emt 0:00:40]} 6. h3 {[%emt 0:00:19]} h6 {[%emt 0:01:16]} 7. Nc3 Na5 {[%emt 0:03:14]} 8. Bb3 {[%emt 0:00:20]} a6 {[%emt 0:00:42]} 9. Be3 {[%emt 0:01:11]} Bxe3 {[%emt 0:01:33]} 10. fxe3 {[%emt 0:00:02]} Nxb3 {[%emt 0:00:12]} 11. axb3 O-O {[%emt 0:04:10]} 12. Qe2 {[%emt 0:01:19]} Nh7 {[%emt 0:02:24]} 13. Kh2 {[%emt 0:05:42]} Be6 {[%emt 0:07:02]} 14. Qf2 f5 15. exf5 {[%emt 0:01:55]} Rxf5 {[%emt 0:00:45]} 16. e4 {[%emt 0:07:07]} Rf7 {[%emt 0:03:57]} 17. Qg3 {[%emt 0:03:08]} Qd7 {[%emt 0:01:37]} 18. Rf2 {[%emt 0:00:12]} Raf8 {[%emt 0:01:39]} 19. Raf1 {[%emt 0:04:28]} g5 {[%emt 0:00:38]} 20. Nd2 {[%emt 0:02:45]} Nf6 {[%emt 0:08:56]} 21. Qe3 {[%emt 0:17:26]} g4 {[%emt 0:04:11]} 22. Kh1 {[%emt 0:00:09]} gxh3 {[%emt 0:14:05]} 23. gxh3 {[%emt 0:03:27]} Bxh3 {[%emt 0:00:26]} 24. Rg1+ {[%emt 0:09:19]} Bg4 {[%emt 0:02:46]} 25. Rfg2 {[%emt 0:04:08]} Kh7 {[%emt 0:02:13]} 26. Rh2 {[%emt 0:05:44]} Nh5 {[%emt 0:02:52]} 27. Qe1 {[%emt 0:11:00]} Rg7 {[%emt 0:10:50]} 28. Qe3 {[%emt 0:00:55]} Rfg8 {[%emt 0:01:10]} 29. Nd5 {[%emt 0:03:57]} Qf7 {[%emt 0:00:43]} 30. Rf2 Nf4 {[%emt 0:00:04]} 31. Nxf4 {[%emt 0:02:12]} exf4 {[%emt 0:00:19]} 32. Qxf4 {[%emt 0:00:23]} Bf3+ 33. Qxf3 {[%emt 0:00:57]} Rxg1+ {[%emt 0:00:39]} 34. Kh2 {[%emt 0:00:00]} Qxf3 {[%emt 0:00:49]} 35. Nxf3 {[%emt 0:00:11]} R1g4 36. Re2 {[%emt 0:00:00]} Rf4 {[%emt 0:01:52]} 37. Re3 {[%emt 0:00:36]} h5 {[%emt 0:00:58]} 38. Kh3 {[%emt 0:01:20]} Kh6 {[%emt 0:03:54]} 39. d4 Rfg4 {[%emt 0:00:22]} 40. Nh2 {[%emt 0:01:01]} Rg2 41. e5 {[%emt 0:00:00]} dxe5 {[%emt 0:01:17]} 42. dxe5 {[%emt 0:00:00]} Rxc2 {[%emt 0:00:49]} 43. e6 {[%emt 0:00:00]} Re8 {[%emt 0:01:10]} 44. Nf3 {[%emt 0:00:46]} Kg6 {[%emt 0:00:41]} 45. Nd4 {[%emt 0:00:34]} Rxb2 46. Kg3 {[%emt 0:00:08]} Rd2 {[%emt 0:00:51]} 47. Nf3 Rd6 {[%emt 0:00:12]} 48. e7 {[%emt 0:00:31]} Kf6 {[%emt 0:00:12]} 49. Re5 Rd3 {[%emt 0:00:21]} 50. Rxh5 {[%emt 0:00:31]} Rxb3 51. Rh6+ {[%emt 0:00:00]} Kxe7 {[%emt 0:00:13]} 52. Rh7+ Kd6 53. Rh6+ {[%emt 0:00:24]} Re6 {[%emt 0:00:11]} 54. Rh4 {[%emt 0:00:06]} Rf6 {[%emt 0:00:05]} 55. Rd4+ Kc5 {[%emt 0:00:04]} 56. Rf4 {[%emt 0:00:07]} Rxf4 {[%emt 0:00:03]} 57. Kxf4 {[%emt 0:00:05]} Rxf3+ {[%emt 0:00:04]} 58. Kxf3 {[%emt 0:00:05]} a5 {[%emt 0:00:03]} 59. Ke3 {[%emt 0:00:05]} a4 {[%emt 0:00:04]} 60. Kd2 {[%emt 0:00:05]} b5 {[%emt 0:00:03]} 61. Kc3 {[%emt 0:00:04]} b4+ {[%emt 0:00:03]} 62. Kb2 {[%emt 0:00:03]} Kd4 {[%emt 0:00:04]} 63. Kc2 {[%emt 0:00:04]} c5 {[%emt 0:00:04]} 64. Kb2 {[%emt 0:00:03]} c4 0-1

[Event "XLII Barbera Open 2019"]
[Site "Barbera"]
[Date "2019.07.04"]
[Round "1.8"]
[White "Cruz, Jefferson"]
[Black "Sreeshwan Maralakshikari"]
[Result "1/2-1/2"]
[ECO "D45"]
[WhiteElo "2033"]
[BlackElo "2461"]
[Annotator "ChessBase"]
[PlyCount "89"]
[EventDate "2019.07.04"]
[EventType "swiss"]
[EventCountry "ESP"]
[SourceTitle "playchess.com"]
[Source "ChessBase"]
[SourceQuality "1"]
[TimeControl "5400+30"]

1. d4 {[%emt 0:00:00]} d5 {[%emt 0:00:00]} 2. c4 {[%emt 0:00:00]} c6 {[%emt 0:00:00]} 3. Nc3 {[%emt 0:00:00]} Nf6 {[%emt 0:00:00]} 4. Nf3 {[%emt 0:00:00]} e6 {[%emt 0:00:00]} 5. e3 {[%emt 0:01:13]} Nbd7 {[%emt 0:00:00]} 6. Qc2 {[%emt 0:00:10]} b6 {[%emt 0:00:09]} 7. Be2 {[%emt 0:00:11]} Bb7 {[%emt 0:00:08]} 8. O-O {[%emt 0:00:50]} Rc8 {[%emt 0:00:02]} 9. b3 {[%emt 0:02:33]} Bd6 {[%emt 0:00:04]} 10. Bb2 {[%emt 0:03:09]} Qe7 {[%emt 0:01:58]} 11. Rad1 {[%emt 0:08:25]} O-O {[%emt 0:02:36]} 12. e4 {[%emt 0:04:13]} e5 {[%emt 0:00:11]} 13. dxe5 {[%emt 0:01:49]} Nxe5 {[%emt 0:00:11]} 14. Nd4 {[%emt 0:05:21]} Neg4 {[%emt 0:06:20]} 15. h3 {[%emt 0:12:51]} Nh6 {[%emt 0:01:19]} 16. Bc1 {[%emt 0:03:00]} c5 {[%emt 0:05:55]} 17. Ndb5 {[%emt 0:05:30]} d4 {[%emt 0:01:21]} 18. Nxd6 {[%emt 0:15:17]} Qxd6 {[%emt 0:00:07]} 19. Bxh6 {[%emt 0:04:23]} gxh6 {[%emt 0:00:06]} 20. Nd5 {[%emt 0:01:04]} Bxd5 {[%emt 0:04:28]} 21. exd5 {[%emt 0:03:22]} Rce8 {[%emt 0:01:43]} 22. Bd3 {[%emt 0:02:35]} Re5 {[%emt 0:01:35]} 23. Rde1 {[%emt 0:01:03]} Rg5 {[%emt 0:02:36]} 24. f4 {[%emt 0:03:54]} Rg3 {[%emt 0:00:24]} 25. Bf5 {[%emt 0:03:14]} Kh8 {[%emt 0:00:45]} 26. Qf2 {[%emt 0:00:59]} Rfg8 {[%emt 0:00:44]} 27. Bg4 {[%emt 0:00:07]} Rc3 {[%emt 0:00:15]} 28. Qh4 {[%emt 0:00:19]} Nxg4 {[%emt 0:06:46]} 29. hxg4 {[%emt 0:00:07]} Rc2 {[%emt 0:00:06]} 30. f5 {[%emt 0:05:58]} d3 {[%emt 0:04:47]} 31. Rf2 {[%emt 0:04:35]} h5 {[%emt 0:12:27]} 32. Rxc2 {[%emt 0:05:16]} dxc2 {[%emt 0:00:05]} 33. g5 {[%emt 0:00:09]} h6 {[%emt 0:09:00]} 34. Qxh5 {[%emt 0:04:14]} Rxg5 {[%emt 0:00:41]} 35. Qxf7 {[%emt 0:00:42]} Qg3 {[%emt 0:02:30]} 36. Qe8+ {[%emt 0:00:47]} Kh7 {[%emt 0:00:06]} 37. Qe4 {[%emt 0:00:04]} Rg4 {[%emt 0:05:34]} 38. Qe7+ {[%emt 0:00:46]} Kg8 {[%emt 0:00:24]} 39. Qe8+ {[%emt 0:00:28]} Kh7 {[%emt 0:00:07]} 40. Qe7+ {[%emt 0:00:15]} Kh8 {[%emt 0:01:05]} 41. Qf6+ {[%emt 0:00:11]} Kh7 {[%emt 0:00:23]} 42. Qe7+ {[%emt 0:00:34]} Rg7 {[%emt 0:00:00]} 43. Qe4 {[%emt 0:00:20]} Rg4 {[%emt 0:00:00]} 44. Qe7+ {[%emt 0:00:16]} Kh8 {[%emt 0:00:07]} 45. Qf6+ {[%emt 0:00:20]} 1/2-1/2

[Event "XLII Barbera Open 2019"]
[Site "Barbera"]
[Date "2019.07.04"]
[Round "1.9"]
[White "Sturt, Raven"]
[Black "Bohigas Santasusagna, Lluis"]
[Result "1-0"]
[ECO "A55"]
[WhiteElo "2429"]
[BlackElo "2026"]
[Annotator "NA"]
[PlyCount "79"]
[EventDate "2019.07.04"]
[EventType "swiss"]
[EventCountry "ESP"]
[SourceTitle "playchess.com"]
[Source "ChessBase"]
[SourceQuality "1"]
[TimeControl "5400+30"]

1. d4 {[%emt 0:00:00]} d6 {[%emt 0:00:00]} 2. Nf3 {[%emt 0:00:00]} Nd7 {[%emt 0:00:00]} 3. c4 {[%emt 0:00:23]} e5 {[%emt 0:00:00]} 4. Nc3 {[%emt 0:00:26]} Ngf6 {[%emt 0:00:36]} 5. e4 {[%emt 0:01:05]} Be7 {[%emt 0:00:09]} 6. Be2 {[%emt 0:00:52]} O-O {[%emt 0:02:35]} 7. O-O {[%emt 0:00:56]} c6 {[%emt 0:01:20]} 8. h3 {[%emt 0:08:48]} a6 {[%emt 0:04:33]} 9. Be3 {[%emt 0:13:58]} b5 {[%emt 0:01:26]} 10. c5 {[%emt 0:00:41]} Qc7 {[%emt 0:05:27]} 11. cxd6 {[%emt 0:02:32]} Bxd6 {[%emt 0:00:22]} 12. Rc1 {[%emt 0:01:44]} Qb8 {[%emt 0:03:57]} 13. Qc2 {[%emt 0:06:10]} Bb7 {[%emt 0:01:29]} 14. dxe5 {[%emt 0:01:32]} Nxe5 {[%emt 0:02:11]} 15. Nxe5 {[%emt 0:00:04]} Bxe5 {[%emt 0:00:37]} 16. f4 {[%emt 0:00:12]} Bc7 {[%emt 0:02:02]} 17. e5 {[%emt 0:00:34]} Nd7 {[%emt 0:03:20]} 18. Ne4 {[%emt 0:01:48]} h6 {[%emt 0:06:54]} 19. Rfd1 {[%emt 0:05:29]} Bb6 {[%emt 0:03:53]} 20. Bxb6 {[%emt 0:02:13]} Nxb6 {[%emt 0:00:13]} 21. Nc5 {[%emt 0:00:06]} Nd5 {[%emt 0:03:36]} 22. Qe4 {[%emt 0:00:14]} Re8 {[%emt 0:02:49]} 23. Bd3 {[%emt 0:04:06]} Nf6 {[%emt 0:02:34]} 24. Qf3 {[%emt 0:00:23]} Nd5 {[%emt 0:02:02]} 25. Re1 {[%emt 0:00:44]} Bc8 {[%emt 0:02:05]} 26. Ne4 {[%emt 0:03:52]} Bd7 {[%emt 0:05:56]} 27. Nd6 {[%emt 0:00:09]} Re7 {[%emt 0:03:21]} 28. Be4 {[%emt 0:00:06]} Qb6+ {[%emt 0:03:20]} 29. Kh2 {[%emt 0:00:19]} Rd8 {[%emt 0:01:01]} 30. Bxd5 {[%emt 0:02:12]} cxd5 {[%emt 0:00:12]} 31. Qxd5 {[%emt 0:00:03]} Be6 {[%emt 0:00:53]} 32. Qf3 {[%emt 0:01:16]} Rc7 {[%emt 0:03:36]} 33. b3 {[%emt 0:01:21]} Rxc1 {[%emt 0:03:39]} 34. Rxc1 {[%emt 0:00:03]} Qd4 {[%emt 0:00:32]} 35. Rd1 {[%emt 0:00:14]} Qb6 {[%emt 0:08:34]} 36. f5 {[%emt 0:00:12]} Bc8 {[%emt 0:02:44]} 37. f6 {[%emt 0:00:14]} Be6 {[%emt 0:01:44]} 38. fxg7 {[%emt 0:00:21]} Kxg7 {[%emt 0:04:42]} 39. Qf6+ {[%emt 0:00:03]} Kh7 {[%emt 0:01:11]} 40. Nf5 {[%emt 0:01:17]} 1-0

[Event "XLII Barbera Open 2019"]
[Site "Barbera"]
[Date "2019.07.04"]
[Round "1.10"]
[White "Sivanesan, Subramanian"]
[Black "Morales, Jhon Alexander"]
[Result "0-1"]
[ECO "A37"]
[WhiteElo "2013"]
[BlackElo "2422"]
[Annotator "NA"]
[PlyCount "54"]
[EventDate "2019.07.04"]
[EventType "swiss"]
[EventCountry "ESP"]
[SourceTitle "playchess.com"]
[Source "ChessBase"]
[SourceQuality "1"]
[TimeControl "5400+30"]

1. c4 g6 2. g3 Bg7 3. Bg2 c5 4. Nc3 Nc6 5. Nf3 e5 6. O-O Nge7 7. d3 O-O 8. e4 d6 9. Be3 a6 10. Rb1 b5 11. cxb5 axb5 12. Nxb5 Rxa2 13. Na3 Nb4 14. Nd2 Ba6 15. Ndc4 Nec6 16. Bf3 Na5 17. Bd2 Nac6 18. Bc3 Qc7 19. Qd2 Rd8 20. Bxb4 cxb4 21. Nc2 b3 22. N2a3 Nd4 23. Bg2 h5 24. Rfc1 Qa7 25. h4 Kh7 26. Rc3 Bxc4 27. dxc4 Qxa3 0-1